[Event "Early-Titled-Tuesday-Blitz-September-12-2023"]
[Site "Chess.com"]
[Date "2023.09.12"]
[Round "8"]
[White "ajedrezhoy"]
[Black "dadice10"]
[Result "0-1"]
[WhiteElo "2383"]
[BlackElo "2226"]
[TimeControl "180+1"]
[EndTime "9:29:09 PDT"]
[Termination "dadice10 won on time"]

1. c4 {[%clk 0:03:00.9]} 1... Nf6 {[%clk 0:02:57]} 2. Nc3 {[%clk 0:02:58]} 2...
g6 {[%clk 0:02:56.8]} 3. g3 {[%clk 0:02:54.9]} 3... Bg7 {[%clk 0:02:55.6]} 4.
Bg2 {[%clk 0:02:51.4]} 4... O-O {[%clk 0:02:54.8]} 5. e4 {[%clk 0:02:49.5]} 5...
e5 {[%clk 0:02:54.1]} 6. Nge2 {[%clk 0:02:43.3]} 6... c6 {[%clk 0:02:52.9]} 7.
O-O {[%clk 0:02:42.3]} 7... Re8 {[%clk 0:02:47.2]} 8. d3 {[%clk 0:02:41.5]} 8...
h6 {[%clk 0:02:41.7]} 9. Rb1 {[%clk 0:02:40.2]} 9... d6 {[%clk 0:02:40.4]} 10.
b4 {[%clk 0:02:39.9]} 10... Be6 {[%clk 0:02:39.8]} 11. h3 {[%clk 0:02:35]} 11...
d5 {[%clk 0:02:30.1]} 12. cxd5 {[%clk 0:02:20.7]} 12... cxd5 {[%clk 0:02:31]}
13. f4 {[%clk 0:02:10.9]} 13... exf4 {[%clk 0:02:03.6]} 14. gxf4 {[%clk
0:02:05.4]} 14... dxe4 {[%clk 0:02:03.4]} 15. dxe4 {[%clk 0:02:04]} 15... Nc6
{[%clk 0:01:53]} 16. Be3 {[%clk 0:01:59.4]} 16... Nh5 {[%clk 0:01:43.5]} 17. b5
{[%clk 0:01:47.7]} 17... Na5 {[%clk 0:01:41.3]} 18. Qxd8 {[%clk 0:01:37.9]}
18... Rexd8 {[%clk 0:01:38.2]} 19. Nd5 {[%clk 0:01:34.8]} 19... Bxd5 {[%clk
0:01:35]} 20. exd5 {[%clk 0:01:34.1]} 20... Re8 {[%clk 0:01:24.3]} 21. Kf2
{[%clk 0:01:31.9]} 21... Nc4 {[%clk 0:01:18.1]} 22. Bc1 {[%clk 0:01:20.4]} 22...
Bf8 {[%clk 0:00:59.1]} 23. Bf3 {[%clk 0:01:07.8]} 23... Bc5+ {[%clk 0:00:58]}
24. Kg2 {[%clk 0:01:07.6]} 24... Nf6 {[%clk 0:00:54.2]} 25. Nc3 {[%clk
0:00:52.1]} 25... Be3 {[%clk 0:00:48.7]} 26. Re1 {[%clk 0:00:26]} 26... Rac8
{[%clk 0:00:45.6]} 27. Na4 {[%clk 0:00:15.9]} 27... Bxc1 {[%clk 0:00:36.2]} 28.
Rbxc1 {[%clk 0:00:14.7]} 28... Ne3+ {[%clk 0:00:36]} 29. Kf2 {[%clk 0:00:14]}
29... Rxc1 {[%clk 0:00:33.6]} 30. Rxc1 {[%clk 0:00:13.4]} 30... Nexd5 {[%clk
0:00:34.2]} 31. Rc5 {[%clk 0:00:10.9]} 31... Nxf4 {[%clk 0:00:27.2]} 32. Rc7
{[%clk 0:00:10.6]} 32... Nxh3+ {[%clk 0:00:17.9]} 33. Kg3 {[%clk 0:00:10.5]}
33... Ng5 {[%clk 0:00:17.6]} 34. Bxb7 {[%clk 0:00:10.5]} 34... Re3+ {[%clk
0:00:16.6]} 35. Kf2 {[%clk 0:00:10]} 35... Ra3 {[%clk 0:00:15.6]} 36. Nc3 {[%clk
0:00:09.8]} 36... h5 {[%clk 0:00:12.6]} 37. Bh1 {[%clk 0:00:05.3]} 37... Ng4+
{[%clk 0:00:11]} 38. Kg3 {[%clk 0:00:03.6]} 38... Ne5 {[%clk 0:00:09.8]} 39. Kf4
{[%clk 0:00:03.5]} 39... f6 {[%clk 0:00:09.1]} 40. Rb7 {[%clk 0:00:03]} 40...
Ne6+ {[%clk 0:00:07.1]} 41. Ke4 {[%clk 0:00:02.2]} 41... Nc5+ {[%clk 0:00:06.7]}
42. Kd5 {[%clk 0:00:02.4]} 42... Nxb7 {[%clk 0:00:07.1]} 43. Ke6 {[%clk
0:00:02.6]} 43... Rxc3 {[%clk 0:00:06.4]} 44. Bxb7 {[%clk 0:00:01.8]} 44... Nc4
{[%clk 0:00:04.5]} 45. Kxf6 {[%clk 0:00:01.4]} 45... Kh7 {[%clk 0:00:03.7]} 0-1

[Event "Early-Titled-Tuesday-Blitz-September-12-2023"]
[Site "Chess.com"]
[Date "2023.09.12"]
[Round "8"]
[White "mjray79"]
[Black "Gogolev_Artemy"]
[Result "1-0"]
[WhiteElo "2537"]
[BlackElo "2391"]
[TimeControl "180+1"]
[EndTime "9:29:14 PDT"]
[Termination "mjray79 won by resignation"]

1. Nf3 {[%clk 0:03:00.9]} 1... d5 {[%clk 0:02:57.9]} 2. c4 {[%clk 0:03:00.5]}
2... c6 {[%clk 0:02:55.1]} 3. g3 {[%clk 0:02:56.1]} 3... Nf6 {[%clk 0:02:50.3]}
4. Bg2 {[%clk 0:02:56.1]} 4... dxc4 {[%clk 0:02:49.8]} 5. O-O {[%clk 0:02:54.9]}
5... g6 {[%clk 0:02:47.2]} 6. Ne5 {[%clk 0:02:54.3]} 6... Qd4 {[%clk 0:02:44.9]}
7. Nf3 {[%clk 0:02:52.6]} 7... Qd8 {[%clk 0:02:44.7]} 8. Na3 {[%clk 0:02:49.6]}
8... Be6 {[%clk 0:02:40.2]} 9. Qc2 {[%clk 0:02:43.1]} 9... Bg7 {[%clk
0:02:37.9]} 10. Nxc4 {[%clk 0:02:42.9]} 10... O-O {[%clk 0:02:38.3]} 11. d4
{[%clk 0:02:41]} 11... Na6 {[%clk 0:02:37.6]} 12. a3 {[%clk 0:02:40.4]} 12... c5
{[%clk 0:02:22.5]} 13. Rd1 {[%clk 0:02:33.3]} 13... Qc8 {[%clk 0:02:15]} 14. Na5
{[%clk 0:02:13.1]} 14... b6 {[%clk 0:02:02.2]} 15. Nb3 {[%clk 0:02:12.6]} 15...
Bf5 {[%clk 0:01:10.4]} 16. Qc4 {[%clk 0:02:05.1]} 16... b5 {[%clk 0:00:55.7]}
17. Qc3 {[%clk 0:01:31.4]} 17... Nd5 {[%clk 0:00:45.2]} 18. Qd2 {[%clk
0:01:31.6]} 18... c4 {[%clk 0:00:40.6]} 19. Na5 {[%clk 0:01:20.1]} 19... Rd8
{[%clk 0:00:29.5]} 20. Qe1 {[%clk 0:01:19.3]} 20... Be4 {[%clk 0:00:28.6]} 21.
Bf4 {[%clk 0:01:14.7]} 21... Nxf4 {[%clk 0:00:27.3]} 22. gxf4 {[%clk 0:01:14.4]}
22... Qc7 {[%clk 0:00:27.1]} 23. e3 {[%clk 0:01:13.1]} 23... Nb8 {[%clk
0:00:21]} 24. Rac1 {[%clk 0:01:11.4]} 24... Nc6 {[%clk 0:00:18.8]} 25. Nxc6
{[%clk 0:01:05]} 25... Qxc6 {[%clk 0:00:19.1]} 26. Qe2 {[%clk 0:01:05.7]} 26...
Rac8 {[%clk 0:00:16.4]} 27. Rc3 {[%clk 0:00:52.5]} 27... Qd5 {[%clk 0:00:15.9]}
28. Rdc1 {[%clk 0:00:52.3]} 28... Bf6 {[%clk 0:00:10]} 29. b3 {[%clk 0:00:48.2]}
29... Qd6 {[%clk 0:00:03.3]} 30. bxc4 {[%clk 0:00:40.1]} 30... Rxc4 {[%clk
0:00:03.6]} 31. Nd2 {[%clk 0:00:30.3]} 31... Rxc3 {[%clk 0:00:02.5]} 32. Rxc3
{[%clk 0:00:31.2]} 32... Bxg2 {[%clk 0:00:02.4]} 33. Kxg2 {[%clk 0:00:32.1]}
33... Qd5+ {[%clk 0:00:01.5]} 34. Qf3 {[%clk 0:00:32.7]} 34... Qxf3+ {[%clk
0:00:01.8]} 35. Kxf3 {[%clk 0:00:33.4]} 35... e6 {[%clk 0:00:02.2]} 36. Rc7
{[%clk 0:00:30.8]} 36... a5 {[%clk 0:00:02.3]} 37. Ne4 {[%clk 0:00:31.3]} 37...
Bg7 {[%clk 0:00:01.9]} 38. Rb7 {[%clk 0:00:31.1]} 38... Rd5 {[%clk 0:00:01.6]}
39. Nc5 {[%clk 0:00:30.5]} 39... Bf8 {[%clk 0:00:01.5]} 40. Rxb5 {[%clk
0:00:30.1]} 40... Bxc5 {[%clk 0:00:01.9]} 41. Rxc5 {[%clk 0:00:29.7]} 41... Rxc5
{[%clk 0:00:01.2]} 42. dxc5 {[%clk 0:00:30.6]} 42... Kf8 {[%clk 0:00:01.5]} 43.
Ke4 {[%clk 0:00:26.1]} 43... Ke7 {[%clk 0:00:01.8]} 44. Kd4 {[%clk 0:00:25.4]}
44... Kd7 {[%clk 0:00:02.3]} 45. Kc4 {[%clk 0:00:23.2]} 45... Kc6 {[%clk
0:00:02.7]} 46. a4 {[%clk 0:00:23.1]} 46... h6 {[%clk 0:00:02]} 47. Kd4 {[%clk
0:00:19.9]} 47... f6 {[%clk 0:00:01.9]} 48. e4 {[%clk 0:00:18.8]} 48... e5+
{[%clk 0:00:01.2]} 49. fxe5 {[%clk 0:00:19.7]} 49... fxe5+ {[%clk 0:00:02]} 50.
Kxe5 {[%clk 0:00:19.4]} 50... Kxc5 {[%clk 0:00:02.3]} 51. Kf6 {[%clk 0:00:20.1]}
51... Kb4 {[%clk 0:00:02.9]} 52. e5 {[%clk 0:00:20.7]} 52... Kxa4 {[%clk
0:00:03.8]} 53. e6 {[%clk 0:00:21.6]} 53... Kb4 {[%clk 0:00:02.8]} 54. e7 {[%clk
0:00:22.5]} 54... a4 {[%clk 0:00:03.7]} 55. e8=Q {[%clk 0:00:22.8]} 55... a3
{[%clk 0:00:04.6]} 56. Qe5 {[%clk 0:00:22.7]} 56... a2 {[%clk 0:00:05.5]} 57.
Qa1 {[%clk 0:00:23.1]} 57... Kb3 {[%clk 0:00:05.6]} 58. Kxg6 {[%clk 0:00:23.7]}
1-0

[Event "Early-Titled-Tuesday-Blitz-September-12-2023"]
[Site "Chess.com"]
[Date "2023.09.12"]
[Round "8"]
[White "GMJustin"]
[Black "maurovargas01"]
[Result "1-0"]
[WhiteElo "2252"]
[BlackElo "1861"]
[TimeControl "180+1"]
[EndTime "9:29:14 PDT"]
[Termination "GMJustin won on time"]

1. d4 {[%clk 0:02:24.8]} 1... d5 {[%clk 0:03:00.9]} 2. h3 {[%clk 0:02:17.7]}
2... c6 {[%clk 0:03:01.8]} 3. Nf3 {[%clk 0:02:14.1]} 3... Bf5 {[%clk 0:03:00.1]}
4. Bf4 {[%clk 0:02:08.3]} 4... e6 {[%clk 0:02:59.8]} 5. Nbd2 {[%clk 0:01:59.8]}
5... Bd6 {[%clk 0:02:59.5]} 6. Bxd6 {[%clk 0:01:54.8]} 6... Qxd6 {[%clk
0:02:58.6]} 7. e3 {[%clk 0:01:52.1]} 7... Nd7 {[%clk 0:02:56]} 8. c4 {[%clk
0:01:47.7]} 8... Bg6 {[%clk 0:02:50.6]} 9. c5 {[%clk 0:01:41.1]} 9... Qc7 {[%clk
0:02:46.3]} 10. b4 {[%clk 0:01:39.7]} 10... f5 {[%clk 0:02:43.8]} 11. Ng5 {[%clk
0:01:27.2]} 11... Bf7 {[%clk 0:02:39.6]} 12. f4 {[%clk 0:01:15.9]} 12... Ngf6
{[%clk 0:02:37.1]} 13. Bd3 {[%clk 0:00:39.8]} 13... O-O {[%clk 0:02:35.7]} 14.
O-O {[%clk 0:00:37.5]} 14... Rae8 {[%clk 0:02:34.8]} 15. Qe1 {[%clk 0:00:22.7]}
15... a6 {[%clk 0:02:30.8]} 16. Ngf3 {[%clk 0:00:21.3]} 16... Ne4 {[%clk
0:02:26.9]} 17. Ne5 {[%clk 0:00:17.7]} 17... Qd8 {[%clk 0:02:14.8]} 18. Nxe4
{[%clk 0:00:13.1]} 18... fxe4 {[%clk 0:01:52.7]} 19. Be2 {[%clk 0:00:13.1]}
19... Nxe5 {[%clk 0:01:43.2]} 20. fxe5 {[%clk 0:00:11.2]} 20... Bg6 {[%clk
0:01:39.3]} 21. Qg3 {[%clk 0:00:07]} 21... Rf7 {[%clk 0:01:27.2]} 22. h4 {[%clk
0:00:06.1]} 22... Bf5 {[%clk 0:01:18.1]} 23. h5 {[%clk 0:00:04.2]} 23... h6
{[%clk 0:01:15.6]} 24. a4 {[%clk 0:00:03.6]} 24... Ref8 {[%clk 0:01:12.9]} 25.
b5 {[%clk 0:00:03.5]} 25... axb5 {[%clk 0:01:03.8]} 26. axb5 {[%clk 0:00:03.5]}
26... Qg5 {[%clk 0:00:23.1]} 27. Qxg5 {[%clk 0:00:02.7]} 27... hxg5 {[%clk
0:00:22.8]} 28. b6 {[%clk 0:00:02.9]} 28... g4 {[%clk 0:00:20.2]} 29. Kh2 {[%clk
0:00:02.8]} 29... Kh7 {[%clk 0:00:16.6]} 30. Kg3 {[%clk 0:00:02.6]} 30... Kh6
{[%clk 0:00:16.7]} 31. Bxg4 {[%clk 0:00:02.7]} 31... Bxg4 {[%clk 0:00:14.1]} 32.
Rxf7 {[%clk 0:00:02.4]} 32... Rxf7 {[%clk 0:00:14.2]} 33. Kxg4 {[%clk
0:00:02.5]} 33... Rf2 {[%clk 0:00:12.3]} 34. Ra7 {[%clk 0:00:02.5]} 34... Rxg2+
{[%clk 0:00:11]} 35. Kh3 {[%clk 0:00:02.8]} 35... Re2 {[%clk 0:00:10.4]} 36.
Rxb7 {[%clk 0:00:03.1]} 36... Rxe3+ {[%clk 0:00:08.8]} 37. Kg4 {[%clk
0:00:03.4]} 37... Rb3 {[%clk 0:00:06.3]} 38. Re7 {[%clk 0:00:03.3]} 38... e3
{[%clk 0:00:02.6]} 39. Rxe6+ {[%clk 0:00:03.1]} 39... Kh7 {[%clk 0:00:01.1]} 40.
Kf3 {[%clk 0:00:03.1]} 1-0

[Event "Early-Titled-Tuesday-Blitz-September-12-2023"]
[Site "Chess.com"]
[Date "2023.09.12"]
[Round "8"]
[White "Hasangatin_Ramil"]
[Black "DTChess"]
[Result "0-1"]
[WhiteElo "2714"]
[BlackElo "2529"]
[TimeControl "180+1"]
[EndTime "9:29:15 PDT"]
[Termination "DTChess won on time"]

1. e4 {[%clk 0:02:51]} 1... e5 {[%clk 0:02:59.5]} 2. Nf3 {[%clk 0:02:49.9]} 2...
Nc6 {[%clk 0:02:59.3]} 3. Bb5 {[%clk 0:02:49.8]} 3... a6 {[%clk 0:02:59.4]} 4.
Ba4 {[%clk 0:02:49.5]} 4... Nf6 {[%clk 0:02:58.7]} 5. Bxc6 {[%clk 0:02:49.5]}
5... dxc6 {[%clk 0:02:58.8]} 6. d3 {[%clk 0:02:50]} 6... Nd7 {[%clk 0:02:57.9]}
7. Be3 {[%clk 0:02:49.5]} 7... f6 {[%clk 0:02:58.2]} 8. Nbd2 {[%clk 0:02:49.2]}
8... Be7 {[%clk 0:02:56.3]} 9. Nh4 {[%clk 0:02:48.7]} 9... Nf8 {[%clk 0:02:55]}
10. Qh5+ {[%clk 0:02:46.5]} 10... g6 {[%clk 0:02:52.7]} 11. Qh6 {[%clk
0:02:46.6]} 11... Kf7 {[%clk 0:02:44.2]} 12. Nhf3 {[%clk 0:02:39.6]} 12... Ne6
{[%clk 0:02:37.8]} 13. O-O-O {[%clk 0:02:37.3]} 13... Bf8 {[%clk 0:02:26.5]} 14.
Qh4 {[%clk 0:02:37.1]} 14... Bd7 {[%clk 0:02:11.5]} 15. Nc4 {[%clk 0:02:35.8]}
15... Bg7 {[%clk 0:02:09.5]} 16. d4 {[%clk 0:02:29.4]} 16... exd4 {[%clk
0:02:07.8]} 17. Nxd4 {[%clk 0:02:29.1]} 17... Nxd4 {[%clk 0:02:02.7]} 18. Bxd4
{[%clk 0:02:11.4]} 18... Qe7 {[%clk 0:02:00.9]} 19. Kb1 {[%clk 0:02:01.3]} 19...
Rad8 {[%clk 0:01:59.7]} 20. Rhe1 {[%clk 0:02:00.1]} 20... Be6 {[%clk 0:01:59]}
21. Ne3 {[%clk 0:01:52.9]} 21... Rhe8 {[%clk 0:01:51.5]} 22. Bc3 {[%clk
0:01:32.9]} 22... Kg8 {[%clk 0:01:48.7]} 23. f3 {[%clk 0:01:31.2]} 23... b5
{[%clk 0:01:41.4]} 24. a3 {[%clk 0:01:11.2]} 24... Rxd1+ {[%clk 0:01:33.2]} 25.
Rxd1 {[%clk 0:01:10.6]} 25... Rd8 {[%clk 0:01:33.5]} 26. Qe1 {[%clk 0:01:06.1]}
26... Rxd1+ {[%clk 0:01:33.1]} 27. Qxd1 {[%clk 0:01:07]} 27... Kf7 {[%clk
0:01:28.6]} 28. Qd3 {[%clk 0:01:05.4]} 28... Qd6 {[%clk 0:01:22.8]} 29. g3
{[%clk 0:00:49]} 29... Bh6 {[%clk 0:01:18.2]} 30. f4 {[%clk 0:00:44.1]} 30...
Qxd3 {[%clk 0:01:10]} 31. cxd3 {[%clk 0:00:43.6]} 31... f5 {[%clk 0:01:10.5]}
32. Be5 {[%clk 0:00:36]} 32... Bf8 {[%clk 0:01:03.1]} 33. Bxc7 {[%clk
0:00:28.7]} 33... Bc5 {[%clk 0:01:02.9]} 34. Nf1 {[%clk 0:00:22.3]} 34... fxe4
{[%clk 0:00:55.4]} 35. dxe4 {[%clk 0:00:23.2]} 35... Bc4 {[%clk 0:00:55.7]} 36.
Nd2 {[%clk 0:00:21.2]} 36... Bd3+ {[%clk 0:00:56.1]} 37. Kc1 {[%clk 0:00:21.7]}
37... Be3 {[%clk 0:00:52.5]} 38. e5 {[%clk 0:00:20.3]} 38... Ke6 {[%clk
0:00:49.7]} 39. Kd1 {[%clk 0:00:20.2]} 39... Bf5 {[%clk 0:00:28.6]} 40. Nf3
{[%clk 0:00:17.3]} 40... Bg4 {[%clk 0:00:22.2]} 41. Ke2 {[%clk 0:00:17.4]} 41...
Bc1 {[%clk 0:00:19.9]} 42. Kf2 {[%clk 0:00:16.4]} 42... Bxf3 {[%clk 0:00:20.1]}
43. Kxf3 {[%clk 0:00:16.1]} 43... Bxb2 {[%clk 0:00:20.6]} 44. Bd6 {[%clk
0:00:16.4]} 44... Kd5 {[%clk 0:00:21]} 45. g4 {[%clk 0:00:16.2]} 45... c5 {[%clk
0:00:21.3]} 46. h4 {[%clk 0:00:11.3]} 46... c4 {[%clk 0:00:21.5]} 47. Ke3 {[%clk
0:00:10.2]} 47... a5 {[%clk 0:00:21.1]} 48. h5 {[%clk 0:00:09.5]} 48... Bc1+
{[%clk 0:00:20.7]} 49. Kf3 {[%clk 0:00:09]} 49... c3 {[%clk 0:00:21.1]} 50. f5
{[%clk 0:00:08.1]} 50... gxh5 {[%clk 0:00:20.7]} 51. gxh5 {[%clk 0:00:07.7]}
51... c2 {[%clk 0:00:20.9]} 52. f6 {[%clk 0:00:08.2]} 52... Bh6 {[%clk
0:00:20.7]} 0-1

[Event "Early-Titled-Tuesday-Blitz-September-12-2023"]
[Site "Chess.com"]
[Date "2023.09.12"]
[Round "8"]
[White "schackspelaren"]
[Black "kidagent"]
[Result "0-1"]
[WhiteElo "2265"]
[BlackElo "2213"]
[TimeControl "180+1"]
[EndTime "9:29:16 PDT"]
[Termination "kidagent won on time"]

1. d4 {[%clk 0:03:00.9]} 1... d5 {[%clk 0:02:58.9]} 2. c4 {[%clk 0:03:00.8]}
2... c6 {[%clk 0:02:59.2]} 3. Nc3 {[%clk 0:02:58.6]} 3... Nf6 {[%clk 0:02:58.4]}
4. e3 {[%clk 0:02:58.1]} 4... e6 {[%clk 0:02:57.1]} 5. Nf3 {[%clk 0:02:57.2]}
5... Nbd7 {[%clk 0:02:51.8]} 6. Qc2 {[%clk 0:02:57.1]} 6... a6 {[%clk
0:02:48.7]} 7. Bd3 {[%clk 0:02:54.9]} 7... dxc4 {[%clk 0:02:48]} 8. Bxc4 {[%clk
0:02:55.1]} 8... b5 {[%clk 0:02:48.6]} 9. Be2 {[%clk 0:02:55.1]} 9... Bd6 {[%clk
0:02:42.9]} 10. O-O {[%clk 0:02:54.6]} 10... O-O {[%clk 0:02:42.2]} 11. Rd1
{[%clk 0:02:54.6]} 11... Bb7 {[%clk 0:02:39.4]} 12. a4 {[%clk 0:02:39.4]} 12...
Qe7 {[%clk 0:02:38.4]} 13. Bd2 {[%clk 0:02:26.2]} 13... Rac8 {[%clk 0:02:37.2]}
14. Be1 {[%clk 0:02:22.9]} 14... b4 {[%clk 0:02:36.4]} 15. Ne4 {[%clk 0:02:21]}
15... Nxe4 {[%clk 0:02:35.8]} 16. Qxe4 {[%clk 0:02:20.9]} 16... Nf6 {[%clk
0:02:35.5]} 17. Qh4 {[%clk 0:02:15.1]} 17... c5 {[%clk 0:02:32.1]} 18. Rac1
{[%clk 0:02:01.8]} 18... h6 {[%clk 0:02:19.3]} 19. dxc5 {[%clk 0:01:43.9]} 19...
Bxc5 {[%clk 0:02:11]} 20. b3 {[%clk 0:01:13]} 20... Nd5 {[%clk 0:01:58.1]} 21.
Qxe7 {[%clk 0:01:10.6]} 21... Bxe7 {[%clk 0:01:57.1]} 22. Bc4 {[%clk 0:01:03.4]}
22... a5 {[%clk 0:01:51]} 23. Nd4 {[%clk 0:01:02]} 23... Bf6 {[%clk 0:01:47.3]}
24. Nb5 {[%clk 0:01:00.5]} 24... Rfd8 {[%clk 0:01:44.1]} 25. Kf1 {[%clk
0:00:49.9]} 25... Kf8 {[%clk 0:01:37.4]} 26. Ke2 {[%clk 0:00:48.7]} 26... Nb6
{[%clk 0:01:36.8]} 27. Bd3 {[%clk 0:00:41.1]} 27... Bxg2 {[%clk 0:01:31.5]} 28.
f3 {[%clk 0:00:39.3]} 28... Bh3 {[%clk 0:01:30.9]} 29. Bg3 {[%clk 0:00:32.2]}
29... Be7 {[%clk 0:01:22.2]} 30. Bc7 {[%clk 0:00:31]} 30... Nd5 {[%clk
0:01:07.5]} 31. Bxd8 {[%clk 0:00:28.6]} 31... Rxd8 {[%clk 0:01:02.4]} 32. Be4
{[%clk 0:00:27.8]} 32... Bf5 {[%clk 0:00:49.9]} 33. Bxd5 {[%clk 0:00:27.7]}
33... exd5 {[%clk 0:00:48.9]} 34. e4 {[%clk 0:00:27.6]} 34... dxe4 {[%clk
0:00:45]} 35. Rxd8+ {[%clk 0:00:27.6]} 35... Bxd8 {[%clk 0:00:45.3]} 36. fxe4
{[%clk 0:00:26.3]} 36... Bxe4 {[%clk 0:00:45.4]} 37. Rc8 {[%clk 0:00:24.8]}
37... Ke7 {[%clk 0:00:44.9]} 38. Rb8 {[%clk 0:00:20.6]} 38... Bd5 {[%clk
0:00:43.5]} 39. Nd4 {[%clk 0:00:18.8]} 39... g6 {[%clk 0:00:42.6]} 40. Kd3
{[%clk 0:00:18.4]} 40... Bc7 {[%clk 0:00:39]} 41. Rb5 {[%clk 0:00:18.5]} 41...
Bg2 {[%clk 0:00:36.2]} 42. h4 {[%clk 0:00:16.3]} 42... f5 {[%clk 0:00:32.6]} 43.
Ke2 {[%clk 0:00:14.5]} 43... Be4 {[%clk 0:00:30.9]} 44. Nf3 {[%clk 0:00:13.5]}
44... Bf4 {[%clk 0:00:22.1]} 45. Rxa5 {[%clk 0:00:12.3]} 45... g5 {[%clk
0:00:22.3]} 46. hxg5 {[%clk 0:00:11.8]} 46... hxg5 {[%clk 0:00:23.2]} 47. Ra7+
{[%clk 0:00:11.4]} 47... Kd6 {[%clk 0:00:22.8]} 48. Ra6+ {[%clk 0:00:11]} 48...
Kc5 {[%clk 0:00:22.7]} 49. Ra5+ {[%clk 0:00:10.9]} 49... Kb6 {[%clk 0:00:22.9]}
50. Rb5+ {[%clk 0:00:10.9]} 50... Kc6 {[%clk 0:00:23.5]} 51. Nd4+ {[%clk
0:00:11]} 51... Kd6 {[%clk 0:00:22]} 52. Nxf5+ {[%clk 0:00:11.6]} 52... Ke6
{[%clk 0:00:21.6]} 53. Nd4+ {[%clk 0:00:10.8]} 53... Kd7 {[%clk 0:00:21.7]} 54.
Nf3 {[%clk 0:00:10.7]} 54... g4 {[%clk 0:00:21.3]} 55. Nd4 {[%clk 0:00:10.4]}
55... g3 {[%clk 0:00:21.1]} 56. Nf3 {[%clk 0:00:01.1]} 56... g2 {[%clk
0:00:21.2]} 57. Kf2 {[%clk 0:00:01.5]} 57... Bxf3 {[%clk 0:00:21]} 0-1

[Event "Early-Titled-Tuesday-Blitz-September-12-2023"]
[Site "Chess.com"]
[Date "2023.09.12"]
[Round "8"]
[White "sqmorr"]
[Black "nitpicker"]
[Result "0-1"]
[WhiteElo "2128"]
[BlackElo "2270"]
[TimeControl "180+1"]
[EndTime "9:29:16 PDT"]
[Termination "nitpicker won on time"]

1. d4 {[%clk 0:03:00.9]} 1... Nf6 {[%clk 0:02:59.2]} 2. c4 {[%clk 0:03:00.1]}
2... e6 {[%clk 0:02:59.1]} 3. Nf3 {[%clk 0:02:59.1]} 3... d5 {[%clk 0:02:57.2]}
4. Nc3 {[%clk 0:02:58]} 4... Bb4 {[%clk 0:02:55.4]} 5. Bg5 {[%clk 0:02:55.4]}
5... c6 {[%clk 0:02:50.6]} 6. e3 {[%clk 0:02:47.8]} 6... Nbd7 {[%clk 0:02:50.1]}
7. cxd5 {[%clk 0:02:33.9]} 7... exd5 {[%clk 0:02:47.9]} 8. Bd3 {[%clk
0:02:30.8]} 8... Bd6 {[%clk 0:02:47.9]} 9. O-O {[%clk 0:02:28.1]} 9... h6 {[%clk
0:02:46.3]} 10. Bh4 {[%clk 0:02:26.8]} 10... O-O {[%clk 0:02:46.2]} 11. Qc2
{[%clk 0:02:25.3]} 11... Re8 {[%clk 0:02:41.5]} 12. Rab1 {[%clk 0:02:19.7]}
12... a5 {[%clk 0:02:39.9]} 13. a3 {[%clk 0:02:18.2]} 13... Qe7 {[%clk
0:02:30.7]} 14. Rfc1 {[%clk 0:02:08.2]} 14... b5 {[%clk 0:02:15.6]} 15. a4
{[%clk 0:01:50.8]} 15... b4 {[%clk 0:02:12.9]} 16. Ne2 {[%clk 0:01:48.4]} 16...
Bb7 {[%clk 0:01:52.2]} 17. Ng3 {[%clk 0:01:46.5]} 17... g5 {[%clk 0:01:39.8]}
18. Nf5 {[%clk 0:01:45.2]} 18... Qf8 {[%clk 0:01:40.1]} 19. Bg3 {[%clk
0:01:39.1]} 19... Bxg3 {[%clk 0:01:39.5]} 20. hxg3 {[%clk 0:01:36.7]} 20... Rac8
{[%clk 0:01:32.5]} 21. Qe2 {[%clk 0:01:27.9]} 21... Ne4 {[%clk 0:01:29.1]} 22.
Bxe4 {[%clk 0:01:13.1]} 22... dxe4 {[%clk 0:01:25.6]} 23. Nd2 {[%clk 0:01:11.9]}
23... Re6 {[%clk 0:01:22.5]} 24. Nb3 {[%clk 0:01:04.9]} 24... Ra8 {[%clk
0:01:18.2]} 25. Nc5 {[%clk 0:01:02.6]} 25... Nxc5 {[%clk 0:01:02.9]} 26. Rxc5
{[%clk 0:01:00.7]} 26... Qd8 {[%clk 0:00:50.8]} 27. Rbc1 {[%clk 0:00:55.5]}
27... Rf6 {[%clk 0:00:49.9]} 28. Qh5 {[%clk 0:00:47.2]} 28... Kh7 {[%clk
0:00:44.5]} 29. Qg4 {[%clk 0:00:45.2]} 29... Qd7 {[%clk 0:00:42.7]} 30. Qxe4
{[%clk 0:00:42.2]} 30... Re8 {[%clk 0:00:37.8]} 31. Qb1 {[%clk 0:00:36.8]} 31...
Kg8 {[%clk 0:00:36.6]} 32. e4 {[%clk 0:00:33.5]} 32... Bc8 {[%clk 0:00:34]} 33.
g4 {[%clk 0:00:25.9]} 33... Rfe6 {[%clk 0:00:29.9]} 34. f3 {[%clk 0:00:20.2]}
34... Rf6 {[%clk 0:00:19.4]} 35. Rd1 {[%clk 0:00:19.4]} 35... Qc7 {[%clk
0:00:19.2]} 36. Kf2 {[%clk 0:00:18.5]} 36... Qf4 {[%clk 0:00:18.2]} 37. g3
{[%clk 0:00:18.1]} 37... Qb8 {[%clk 0:00:17.3]} 38. e5 {[%clk 0:00:17.2]} 38...
Rg6 {[%clk 0:00:17.4]} 39. Nd6 {[%clk 0:00:15.8]} 39... Rd8 {[%clk 0:00:15.8]}
40. Qe4 {[%clk 0:00:14.7]} 40... Bd7 {[%clk 0:00:14.2]} 41. f4 {[%clk
0:00:13.1]} 41... gxf4 {[%clk 0:00:13.3]} 42. gxf4 {[%clk 0:00:12.3]} 42... Bxg4
{[%clk 0:00:13.4]} 43. Rg1 {[%clk 0:00:11]} 43... h5 {[%clk 0:00:12.6]} 44. f5
{[%clk 0:00:10.2]} 44... Rg7 {[%clk 0:00:11.7]} 45. f6 {[%clk 0:00:09.6]} 45...
Rg6 {[%clk 0:00:12.1]} 46. Ke3 {[%clk 0:00:07.2]} 46... Rxd6 {[%clk 0:00:12.3]}
47. exd6 {[%clk 0:00:06.4]} 47... Qxd6 {[%clk 0:00:13]} 48. Qe5 {[%clk
0:00:05.9]} 48... Qxf6 {[%clk 0:00:12.5]} 49. Qxf6 {[%clk 0:00:05.1]} 49... Rxf6
{[%clk 0:00:12.3]} 50. Rg3 {[%clk 0:00:05]} 50... Re6+ {[%clk 0:00:12]} 51. Kd2
{[%clk 0:00:04.5]} 51... Rd6 {[%clk 0:00:11.9]} 52. Ke3 {[%clk 0:00:02.8]} 52...
f5 {[%clk 0:00:12.1]} 53. d5 {[%clk 0:00:02.1]} 53... h4 {[%clk 0:00:12]} 54.
Rg1 {[%clk 0:00:01.2]} 54... cxd5 {[%clk 0:00:11.1]} 0-1